fUST/lending_fUST_20260625
["ID","MTS","AMOUNT","RATE_DAILY","PERIOD"]
[426425533,1782373683000,-3000.0,0.000645,120]
[426425532,1782373683000,-18465.0,0.00064,120]
[426425530,1782373683000,-151.91779274,0.0006344,46]
[426425529,1782373683000,-200.0,0.00062,120]
[426425531,1782373683000,-800.0,0.00064,120]
[426425526,1782373683000,-1434.952435,0.00060515,30]
[426425527,1782373683000,-150.0,0.00061,120]
[426425524,1782373683000,-160.0,0.0006,120]
[426425525,1782373683000,-382.64,0.00060274,60]
[426425528,1782373683000,-200.18572387,0.00061,120]
[426425522,1782373683000,-1000.0,0.0006,120]
[426425534,1782373684000,-730.0,0.00065,120]
[426425538,1782373684000,-5050.73,0.00068493,120]
[426425537,1782373684000,-200.0,0.00068,120]
[426425536,1782373684000,-151.91779274,0.00067473,48]
[426425535,1782373684000,-200.0,0.00066,120]
[426425539,1782373692000,724.41,0.00044096,120]
[426425540,1782373692000,724.41,0.0004586,120]
[426425542,1782373693000,724.41,0.00049602,120]
[426425541,1782373693000,724.41,0.00047694,120]
[426425602,1782373832000,-457.42835756,0.00025086,6]
[426425604,1782373832000,-331.48124244,0.00025086,6]
[426425600,1782373832000,-200.0,0.00016438,2]
[426425606,1782373832000,-213.48906606,0.000261,3]
[426425612,1782373832000,-1325.92496977,0.00026856,6]
[426425610,1782373832000,-283.60093394,0.000261,3]
[426425611,1782373832000,-1829.71343026,0.00026856,6]
[426425614,1782373832000,-613.65858555,0.00027316,2]
[426425613,1782373832000,-160.0,0.00027316,2]
[426425618,1782373838000,-1420.0,0.00027316,2]
[426425617,1782373838000,-1599.34141445,0.00027316,2]
[426425619,1782373838000,-1843.0,0.00027316,2]
[426425623,1782373838000,-1830.3779,0.000279,3]
[426425622,1782373838000,-150.334,0.00027316,2]
[426425621,1782373838000,-150.361,0.00027316,2]
[426425620,1782373838000,-186.0,0.00027316,2]
[426425625,1782373838000,-1796.72,0.000279,5]
[426425627,1782373838000,-505.0447,0.000286,3]
[426425629,1782373838000,-161.7217828,0.00029184,2]
[426425624,1782373838000,-479.88,0.000279,3]
[426425630,1782373838000,-1622.98301341,0.00029418,2]
[426425626,1782373838000,-501.71067538,0.0002815,2]
[426425628,1782373838000,-271.72,0.00028607,2]
[426425656,1782373840000,-214.84688049,0.00029503,3]
[426425657,1782373840000,-572.03708966,0.00029513,2]
[426425655,1782373840000,-319.02311951,0.00029503,3]
[426425654,1782373840000,-177.95,0.00029503,3]
[426425653,1782373840000,-154.58727462,0.000295,2]
[426425652,1782373840000,-2456.92186978,0.00029418,2]
[426425665,1782373843000,-840.04952,0.000291,2]
[426425666,1782373843000,-5771.2362965,0.00029513,2]
[426425667,1782373843000,-6285.29079804,0.00029513,2]
[426425669,1782373843000,-3928.60947472,0.00029513,2]
[426425668,1782373843000,-5502.35841072,0.00029513,2]
[426425678,1782373846000,-1631.70070555,0.00029513,2]
[426425676,1782373846000,-12519.12770788,0.00029513,2]
[426425675,1782373846000,-41045.37192768,0.00029513,2]
[426425694,1782374034000,1000.0,0.00027397,120]
[426425695,1782374037000,196.49955408,0.0003,120]
[426425696,1782374113000,417.15472785,0.00027105,30]
[426425716,1782374130000,500.0,0.00029099,30]
[426425717,1782374131000,498.80438647,0.00029612,30]
[426425721,1782374248000,152.0,0.00027118,30]
[426425722,1782374262000,7049.26843815,0.00012,2]
[426425740,1782374354000,196.49955407,0.0003,120]
[426425743,1782374435000,200.0,0.00027,120]
[426425749,1782374684000,593.721,0.00030135,120]
[426425748,1782374684000,500.0,0.00030135,120]
[426425747,1782374684000,500.0,0.00030135,120]
[426425750,1782374774000,1004.39341987,0.00027118,120]
[426425751,1782374786000,184.58982812,0.000256,30]
[426425754,1782374830000,-2820.09866945,0.00018,2]
[426425753,1782374830000,-171.21406725,0.00013365,14]
[426425752,1782374830000,-433.45811007,0.00013,2]
[426425758,1782374927000,301.17,0.00030137,30]
[426425759,1782374955000,300.0,0.0003,120]
[426425760,1782374970000,300.0,0.0003,120]
[426425812,1782375032000,-789.45201651,0.000192,2]
[426425814,1782375032000,-178.240196,0.00019328,2]
[426425810,1782375032000,-392.0469848,0.00018388,2]
[426425808,1782375032000,-629.73128674,0.00018,2]
[426425816,1782375032000,-152.563,0.000196,2]
[426425825,1782375032000,-500.0,0.00019999,2]
[426425820,1782375032000,-500.0,0.00019999,2]
[426425821,1782375032000,-500.0,0.00019999,2]
[426425823,1782375032000,-500.0,0.00019999,2]
[426425793,1782375032000,-1561.0515082,0.00018,2]
[426425832,1782375032000,-500.0,0.00019999,2]
[426425818,1782375032000,-889.76,0.0001999,3]
[426425836,1782375032000,-500.0,0.00019999,2]
[426425850,1782375032000,-18344.979892,0.0002,2]
[426425849,1782375032000,-615.74184032,0.00019999,2]
[426425847,1782375032000,-500.0,0.00019999,2]
[426425845,1782375032000,-326.30959889,0.00019999,2]
[426425843,1782375032000,-500.0,0.00019999,2]
[426425827,1782375032000,-500.0,0.00019999,2]
[426425830,1782375032000,-500.0,0.00019999,2]
[426425840,1782375032000,-347.89614618,0.00019999,2]
[426425838,1782375032000,-500.0,0.00019999,2]
[426425834,1782375032000,-187.26761793,0.00019999,2]
[426425842,1782375032000,-450.718707,0.00019999,2]
[426425951,1782375038000,-6949.79294667,0.0002,2]
[426425953,1782375038000,-290914.46858921,0.0002,2]
[426425948,1782375038000,-2917.37489442,0.0002,2]
[426425946,1782375038000,-45134.53129323,0.0002,2]
[426425993,1782375040000,-2102.96,0.0002,2]
[426426017,1782375047000,-7778.05196821,0.0002,2]
[426426015,1782375047000,-5914.80822378,0.0002,2]
[426426018,1782375047000,-13429.38261749,0.0002,2]
[426426016,1782375047000,-4135.43088264,0.0002,2]
[426426027,1782375128000,158.346,0.0003,120]
[426426029,1782375181000,151.01810783,0.0002,120]
[426426030,1782375219000,631.02126061,0.00027118,120]
[426426031,1782375249000,1000.0,0.00024658,120]
[426426037,1782375379000,280.0,0.00027118,120]
[426426038,1782375587000,230.22,0.00030122,30]
[426426039,1782375590000,398.21493208,0.0003,120]
[426426040,1782375598000,166.61171984,0.0003,120]
[426426041,1782375603000,351.0878626,0.00027135,90]
[426426042,1782375604000,163.0,0.00022356,120]
[426426043,1782375605000,163.0,0.00023474,120]
[426426044,1782375606000,163.0,0.00024647,120]
[426426047,1782375625000,196.86382493,0.0003,120]
[426426046,1782375625000,210.13769,0.00029,120]
[426426055,1782375627000,181.0,0.00022359,120]
[426426053,1782375627000,235.78676262,0.00027135,110]
[426426054,1782375627000,464.71325357,0.00027135,120]
[426426052,1782375627000,235.78676262,0.00027135,110]
[426426051,1782375627000,464.71325357,0.00027135,120]
[426426050,1782375627000,191.65067226,0.00027135,120]
[426426049,1782375627000,235.78676262,0.00027135,110]
[426426048,1782375627000,464.71325357,0.00027135,120]
[426426056,1782375628000,235.78676262,0.00027135,110]
[426426058,1782375628000,464.71325357,0.00027135,120]
[426426057,1782375628000,464.71325357,0.00027135,120]
[426426060,1782375628000,464.71325357,0.00027135,120]
[426426061,1782375628000,235.78676262,0.00027135,110]
[426426059,1782375628000,235.78676262,0.00027135,110]
[426426067,1782375629000,235.78676262,0.00027135,110]
[426426066,1782375629000,464.71325357,0.00027135,120]
[426426065,1782375629000,235.78676262,0.00027135,110]
[426426064,1782375629000,464.71325357,0.00027135,120]
[426426063,1782375629000,235.78676262,0.00027135,110]
[426426062,1782375629000,464.71325357,0.00027135,120]
[426426072,1782375630000,464.71325357,0.00027135,120]
[426426071,1782375630000,235.78676262,0.00027135,110]
[426426070,1782375630000,464.71325357,0.00027135,120]
[426426069,1782375630000,235.78676262,0.00027135,110]
[426426068,1782375630000,464.71325357,0.00027135,120]
[426426073,1782375631000,235.78676262,0.00027135,110]
[426426074,1782375631000,464.71325357,0.00027135,120]
[426426076,1782375631000,464.71325357,0.00027135,120]
[426426077,1782375631000,235.78676262,0.00027135,110]
[426426075,1782375631000,235.78676262,0.00027135,110]
[426426078,1782375632000,235.78676262,0.00027135,110]
[426426079,1782375634000,200.0,0.00027,120]
[426426080,1782375678000,2422.0,0.00012,2]
[426426081,1782375679000,280.0,0.00027135,120]
[426426082,1782375723000,282.82867403,0.00027135,120]
[426426085,1782375747000,154.90441783,0.00027135,120]
[426426084,1782375747000,191.65067225,0.00027135,120]
[426426083,1782375747000,154.90441783,0.00027135,120]
[426426087,1782375748000,154.90441783,0.00027135,120]
[426426088,1782375778000,779.62242701,0.000256,30]
[426426089,1782375783000,779.62242699,0.000256,30]
[426426090,1782375788000,779.62242699,0.000256,30]
[426426092,1782375819000,373.5827056,0.00027131,120]
[426426095,1782375909000,476.06300561,0.0003,120]
[426426096,1782375917000,166.61171984,0.0003,120]
[426426097,1782375928000,165.380653,0.00016882,61]
[426426098,1782375929000,165.380653,0.00016882,120]
[426426100,1782375932000,417.15472785,0.00027131,30]
[426426102,1782375948000,380.85040449,0.0003,120]
[426426103,1782375950000,6055.69355554,0.00027131,30]
[426426107,1782376027000,-407.73108231,0.0001365,7]
[426426105,1782376027000,-429.74654079,0.00013,7]
[426426106,1782376027000,-429.74654079,0.0001326,7]
[426426111,1782376050000,-93.02854075,0.00016149,2]
[426426109,1782376050000,-429.74654079,0.0001404,7]
[426426110,1782376050000,-429.74654082,0.0001456,7]
[426426108,1782376050000,-22.01545848,0.0001365,7]
[426426113,1782376052000,-410.69885679,0.00016361,2]
[426426112,1782376052000,-66.97145925,0.00016149,2]
[426426116,1782376135000,389.81121352,0.000256,30]
[426426117,1782376141000,389.81121349,0.000256,30]
[426426118,1782376145000,389.81121349,0.000256,30]
[426426119,1782376187000,160.57483804,0.00027131,120]
[426426121,1782376221000,153.0,0.00027131,120]
[426426122,1782376223000,153.0,0.00028131,120]
[426426123,1782376224000,153.0,0.00029131,120]
[426426124,1782376225000,154.01848648,0.00030131,120]
[426426125,1782376230000,304.68032359,0.0003,120]
[426426152,1782376232000,-268.09130889,0.00017511,2]
[426426154,1782376232000,-36.32587182,0.00018117,2]
[426426155,1782376232000,-498.39547018,0.000192,2]
[426426151,1782376232000,-2240.95754481,0.00017511,2]
[426426149,1782376232000,-414.5,0.00017511,2]
[426426150,1782376232000,-436.9768657,0.00017511,2]
[426426145,1782376232000,-292.7555246,0.00016568,2]
[426426146,1782376232000,-165.380653,0.00016882,2]
[426426148,1782376232000,-364.6612041,0.00017511,2]
[426426147,1782376232000,-251.95618108,0.0001698,2]
[426426144,1782376232000,-589.30114321,0.00016361,2]
[426426153,1782376232000,-165.36680118,0.00018117,2]
[426426157,1782376237000,166.61171984,0.0003,120]
[426426181,1782376238000,-25.03808237,0.000192,2]
[426426179,1782376238000,-162.48,0.00018943,2]
[426426212,1782376238000,-393.50772709,0.00019993,2]
[426426185,1782376238000,-500.0,0.00019725,2]
[426426187,1782376238000,-500.0,0.00019725,2]
[426426202,1782376238000,-4110.76308015,0.00019899,2]
[426426204,1782376238000,-237.63872602,0.000199,2]
[426426200,1782376238000,-595.2181001,0.00019725,2]
[426426206,1782376238000,-500.0,0.00019993,2]
[426426190,1782376238000,-568.57283237,0.00019725,2]
[426426214,1782376238000,-500.0,0.00019993,2]
[426426208,1782376238000,-477.94610916,0.00019993,2]
[426426210,1782376238000,-500.0,0.00019993,2]
[426426183,1782376238000,-616.58938192,0.00019725,2]
[426426194,1782376238000,-500.0,0.00019725,2]
[426426236,1782376238000,-500.0,0.00019993,2]
[426426197,1782376238000,-500.0,0.00019725,2]
[426426192,1782376238000,-500.0,0.00019725,2]
[426426238,1782376238000,-500.0,0.00019993,2]
[426426232,1782376238000,-500.0,0.00019993,2]
[426426234,1782376238000,-500.0,0.00019993,2]
[426426226,1782376238000,-500.0,0.00019993,2]
[426426230,1782376238000,-500.0,0.00019993,2]
[426426240,1782376238000,-500.0,0.00019993,2]
[426426224,1782376238000,-500.0,0.00019993,2]
[426426216,1782376238000,-500.0,0.00019993,2]
[426426218,1782376238000,-174.71591493,0.00019993,2]
[426426222,1782376238000,-500.0,0.00019993,2]
[426426220,1782376238000,-500.0,0.00019993,2]
[426426227,1782376238000,-500.0,0.00019993,2]
[426426196,1782376238000,-500.0,0.00019725,2]
[426426279,1782376239000,-500.0,0.00019999,2]
[426426285,1782376239000,-500.0,0.00019999,2]
[426426271,1782376239000,-500.0,0.00019993,2]
[426426281,1782376239000,-223.76,0.00019999,2]
[426426292,1782376239000,-500.0,0.00019999,2]
[426426273,1782376239000,-500.0,0.00019993,2]
[426426294,1782376239000,-500.0,0.00019999,2]
[426426269,1782376239000,-500.0,0.00019993,2]
[426426283,1782376239000,-491.06,0.00019999,2]
[426426277,1782376239000,-164.15543101,0.00019994,2]
[426426289,1782376239000,-500.0,0.00019999,2]
[426426287,1782376239000,-458.37305947,0.00019999,2]
[426426275,1782376239000,-306.84315418,0.00019993,2]
[426426265,1782376239000,-500.0,0.00019993,2]
[426426258,1782376239000,-500.0,0.00019993,2]
[426426257,1782376239000,-500.0,0.00019993,2]
[426426248,1782376239000,-500.0,0.00019993,2]
[426426261,1782376239000,-500.0,0.00019993,2]
[426426250,1782376239000,-500.0,0.00019993,2]
[426426267,1782376239000,-472.78272593,0.00019993,2]
[426426254,1782376239000,-500.0,0.00019993,2]
[426426252,1782376239000,-500.0,0.00019993,2]
[426426246,1782376239000,-500.0,0.00019993,2]
[426426244,1782376239000,-500.0,0.00019993,2]
[426426242,1782376239000,-500.0,0.00019993,2]
[426426290,1782376239000,-453.90224525,0.00019999,2]
[426426263,1782376239000,-500.0,0.00019993,2]
[426426296,1782376239000,-500.0,0.00019999,2]
[426426300,1782376239000,-500.0,0.00019999,2]
[426426298,1782376239000,-500.0,0.00019999,2]
[426426355,1782376239000,-5568.48408978,0.0002,2]
[426426348,1782376239000,-296099.4209599,0.0002,2]
[426426357,1782376239000,-647294.81680549,0.0002,2]
[426426353,1782376239000,-7031.587956,0.0002,2]
[426426346,1782376239000,-251.02934395,0.00019999,2]
[426426344,1782376239000,-152.0,0.00019999,2]
[426426337,1782376239000,-400.0,0.00019999,2]
[426426342,1782376239000,-450.0,0.00019999,2]
[426426330,1782376239000,-500.0,0.00019999,2]
[426426338,1782376239000,-500.0,0.00019999,2]
[426426329,1782376239000,-500.0,0.00019999,2]
[426426334,1782376239000,-500.0,0.00019999,2]
[426426333,1782376239000,-500.0,0.00019999,2]
[426426308,1782376239000,-500.0,0.00019999,2]
[426426340,1782376239000,-500.0,0.00019999,2]
[426426350,1782376239000,-2725.57196112,0.0002,2]
[426426306,1782376239000,-480.99664755,0.00019999,2]
[426426302,1782376239000,-500.0,0.00019999,2]
[426426310,1782376239000,-500.0,0.00019999,2]
[426426315,1782376239000,-500.0,0.00019999,2]
[426426312,1782376239000,-500.0,0.00019999,2]
[426426323,1782376239000,-500.0,0.00019999,2]
[426426317,1782376239000,-500.0,0.00019999,2]
[426426318,1782376239000,-500.0,0.00019999,2]
[426426324,1782376239000,-500.0,0.00019999,2]
[426426327,1782376239000,-500.0,0.00019999,2]
[426426320,1782376239000,-500.0,0.00019999,2]
[426426304,1782376239000,-500.0,0.00019999,2]
[426426385,1782376246000,-22490.64526977,0.0002,2]
[426426383,1782376246000,-3275.32346589,0.0002,2]
[426426384,1782376246000,-6179.25,0.0002,2]
[426426415,1782376281000,-739.880135,0.000232,2]
[426426405,1782376281000,-1000.0,0.000232,2]
[426426417,1782376281000,-219.99999999,0.00024545,2]
[426426414,1782376281000,-1000.0,0.000232,2]
[426426404,1782376281000,-200.0,0.000231,2]
[426426402,1782376281000,-1047.38550655,0.000225,2]
[426426398,1782376281000,-1054.74300609,0.000215,2]
[426426399,1782376281000,-159.0,0.00021753,5]
[426426396,1782376281000,-151.0,0.0002,2]
[426426395,1782376281000,-151.0,0.0002,2]
[426426403,1782376281000,-693.2621959,0.00023,2]
[426426400,1782376281000,-500.0,0.00021918,2]
[426426394,1782376281000,-143905.58072141,0.0002,2]
[426426416,1782376281000,-203.57,0.000241,2]
[426426397,1782376281000,-166.77,0.00021426,2]
[426426407,1782376281000,-1000.0,0.000232,2]
[426426401,1782376281000,-544.62342931,0.00021918,2]
[426426410,1782376281000,-1000.0,0.000232,2]
[426426406,1782376281000,-1000.0,0.000232,2]
[426426427,1782376281000,-417.15472785,0.00026966,2]
[426426423,1782376281000,-197.33855514,0.0002633,2]
[426426424,1782376281000,-189.96885986,0.0002633,2]
[426426422,1782376281000,-445.0,0.00026288,2]
[426426421,1782376281000,-633.65993768,0.00026031,2]
[426426425,1782376281000,-268.43588832,0.00026871,2]
[426426420,1782376281000,-153.24,0.00025293,2]
[426426426,1782376281000,-167.15,0.00026879,2]
[426426419,1782376281000,-200.0,0.000251,2]
[426426418,1782376281000,-550.71496985,0.00025,2]
[426426412,1782376281000,-1000.0,0.000232,2]
[426426408,1782376281000,-1000.0,0.000232,2]
[426426413,1782376281000,-1000.0,0.000232,2]
[426426411,1782376281000,-1000.0,0.000232,2]
[426426409,1782376281000,-1000.0,0.000232,2]
[426426470,1782376282000,-160.0,0.00028,3]
[426426480,1782376282000,-1805.466,0.000296,5]
[426426472,1782376282000,-178.5974,0.00028636,2]
[426426471,1782376282000,-155.0,0.00028329,28]
[426426478,1782376282000,-160.0,0.00029408,2]
[426426468,1782376282000,-2069.09060098,0.00027716,2]
[426426474,1782376282000,-306.78387237,0.00029202,2]
[426426467,1782376282000,-1165.02849155,0.00027716,2]
[426426460,1782376282000,-295.67232812,0.00027131,2]
[426426463,1782376282000,-714.52619491,0.00027716,2]
[426426464,1782376282000,-1607.68393854,0.00027716,2]
[426426461,1782376282000,-200.12481636,0.00027131,2]
[426426469,1782376282000,-160.0,0.00028,7]
[426426479,1782376282000,-1805.466,0.000296,5]
[426426476,1782376282000,-445.0,0.00029288,2]
[426426477,1782376282000,-3478.79489476,0.00029369,2]
[426426475,1782376282000,-237.63872601,0.00029284,2]
[426426482,1782376282000,-332.08,0.000296,3]
[426426494,1782376282000,-304.68032359,0.000318,120]
[426426492,1782376282000,-304.68032359,0.000309,120]
[426426493,1782376282000,-166.61171984,0.000309,120]
[426426481,1782376282000,-1805.46,0.000296,5]
[426426483,1782376282000,-519.3314,0.000296,2]
[426426485,1782376282000,-303.3346,0.000296,3]
[426426484,1782376282000,-1811.7939,0.000296,2]
[426426486,1782376282000,-194.66,0.00029841,2]
[426426489,1782376282000,-348.94212448,0.0003071,2]
[426426488,1782376282000,-152.12492349,0.00030325,5]
[426426462,1782376282000,-178.63154873,0.00027716,2]
[426426473,1782376282000,-160.0,0.00029,10]
[426426459,1782376282000,-162.52633575,0.00027131,2]
[426426433,1782376282000,-332.5364591,0.00027131,2]
[426426456,1782376282000,-160.0,0.00027131,2]
[426426487,1782376282000,-152.12492362,0.00030137,2]
[426426429,1782376282000,-160.0,0.00026967,2]
[426426428,1782376282000,-160.0,0.00026966,2]
[426426440,1782376282000,-160.19229194,0.00027131,2]
[426426431,1782376282000,-300.0,0.00027131,2]
[426426439,1782376282000,-751.74301842,0.00027131,2]
[426426432,1782376282000,-823.77933194,0.00027131,2]
[426426436,1782376282000,-1384.68891041,0.00027131,2]
[426426438,1782376282000,-714.3374179,0.00027131,2]
[426426437,1782376282000,-159.21514679,0.00027131,2]
[426426435,1782376282000,-647.93255295,0.00027131,2]
[426426434,1782376282000,-296.78085252,0.00027131,2]
[426426441,1782376282000,-591.12237237,0.00027131,2]
[426426443,1782376282000,-475.72900597,0.00027131,2]
[426426458,1782376282000,-601.9281615,0.00027131,2]
[426426446,1782376282000,-1215.27687857,0.00027131,2]
[426426445,1782376282000,-192.31964803,0.00027131,2]
[426426442,1782376282000,-516.12933863,0.00027131,2]
[426426444,1782376282000,-1620.01615121,0.00027131,2]
[426426451,1782376282000,-152.84568398,0.00027131,2]
[426426448,1782376282000,-662.1695648,0.00027131,2]
[426426449,1782376282000,-1525.53761138,0.00027131,2]
[426426453,1782376282000,-680.52758358,0.00027131,2]
[426426450,1782376282000,-204.70567871,0.00027131,2]
[426426447,1782376282000,-1420.48203052,0.00027131,2]
[426426465,1782376282000,-2855.24667485,0.00027716,2]
[426426454,1782376282000,-329.15606152,0.00027131,2]
[426426457,1782376282000,-1300.0,0.00027131,2]
[426426466,1782376282000,-647.23805086,0.00027716,2]
[426426455,1782376282000,-1060.96363799,0.00027131,2]
[426426452,1782376282000,-262.9205923,0.00027131,2]
[426426490,1782376282000,-320.90915663,0.0003071,2]
[426426430,1782376282000,-160.0,0.00027,7]
[426426495,1782376282000,-166.61171984,0.000318,120]
[426426532,1782376282000,-306.76226801,0.00033548,2]
[426426531,1782376282000,-330.16797349,0.00033548,2]
[426426535,1782376282000,-488.97530704,0.00033548,2]
[426426529,1782376282000,-568.70905058,0.00033548,2]
[426426528,1782376282000,-274.62504442,0.00033548,2]
[426426533,1782376282000,-365.74281707,0.00033548,2]
[426426540,1782376282000,-202.88812981,0.0003356,2]
[426426547,1782376282000,-315.53720711,0.00033561,2]
[426426538,1782376282000,-163.80604106,0.00033548,2]
[426426539,1782376282000,-189.41018865,0.00033548,2]
[426426541,1782376282000,-207.74880473,0.0003356,2]
[426426537,1782376282000,-429.39474061,0.00033548,2]
[426426550,1782376282000,-152.75561292,0.00033561,2]
[426426546,1782376282000,-350.79029456,0.00033561,2]
[426426530,1782376282000,-653.78138486,0.00033548,2]
[426426544,1782376282000,-217.98528305,0.00033561,2]
[426426545,1782376282000,-220.63348224,0.00033561,2]
[426426543,1782376282000,-481.81812385,0.00033561,2]
[426426542,1782376282000,-155.37438652,0.00033561,2]
[426426548,1782376282000,-291.5849876,0.00033561,2]
[426426536,1782376282000,-461.65123463,0.00033548,2]
[426426555,1782376282000,-658.85893956,0.00033955,2]
[426426552,1782376282000,-304.68032359,0.000338,120]
[426426554,1782376282000,-667.69290602,0.00033955,2]
[426426557,1782376282000,-166.63687282,0.00033955,2]
[426426551,1782376282000,-552.22973611,0.00033561,2]
[426426556,1782376282000,-271.32692456,0.00033955,2]
[426426559,1782376282000,-871.70851315,0.00033955,2]
[426426491,1782376282000,-152.12492349,0.0003089,9]
[426426553,1782376282000,-180.74900847,0.00033955,2]
[426426549,1782376282000,-255.55462664,0.00033561,2]
[426426534,1782376282000,-190.12552154,0.00033548,2]
[426426558,1782376282000,-180.40157326,0.00033955,2]
[426426525,1782376282000,-445.12860401,0.00033548,2]
[426426527,1782376282000,-535.96900839,0.00033548,2]
[426426497,1782376282000,-152.12492349,0.0003183,12]
[426426499,1782376282000,-164.71473489,0.00032024,2]
[426426500,1782376282000,-178.65633613,0.00032024,2]
[426426498,1782376282000,-2000.0,0.00032,120]
[426426506,1782376282000,-184.0765787,0.00032035,2]
[426426501,1782376282000,-189.56968353,0.00032024,2]
[426426505,1782376282000,-160.60604128,0.00032035,2]
[426426504,1782376282000,-153.88374488,0.00032024,2]
[426426508,1782376282000,-304.68032359,0.000328,120]
[426426507,1782376282000,-200.0,0.000323,120]
[426426503,1782376282000,-162.99176901,0.00032024,2]
[426426502,1782376282000,-217.92712829,0.00032024,2]
[426426522,1782376282000,-157.76860355,0.0003295,2]
[426426520,1782376282000,-321.21208256,0.0003295,2]
[426426496,1782376282000,-201.692673,0.00031815,2]
[426426509,1782376282000,-222.56430201,0.00032938,2]
[426426526,1782376282000,-494.14420467,0.00033548,2]
[426426524,1782376282000,-152.12492349,0.00033147,15]
[426426523,1782376282000,-368.15315741,0.0003295,2]
[426426516,1782376282000,-182.87140853,0.00032938,2]
[426426510,1782376282000,-329.42946978,0.00032938,2]
[426426514,1782376282000,-165.08398674,0.00032938,2]
[426426515,1782376282000,-153.38113401,0.00032938,2]
[426426519,1782376282000,-214.6973703,0.00032938,2]
[426426518,1782376282000,-307.76748975,0.00032938,2]
[426426512,1782376282000,-379.13936705,0.00032938,2]
[426426513,1782376282000,-435.85425657,0.00032938,2]
[426426511,1782376282000,-357.31267226,0.00032938,2]
[426426521,1782376282000,-175.39514728,0.0003295,2]
[426426517,1782376282000,-325.98353803,0.00032938,2]
[426426600,1782376283000,-988.28840935,0.00034971,2]
[426426599,1782376283000,-152.12492349,0.00034841,18]
[426426607,1782376283000,-1103.65134199,0.00038199,2]
[426426601,1782376283000,-977.95061408,0.00034971,2]
[426426605,1782376283000,-152.12492349,0.0003691,22]
[426426589,1782376283000,-415.49760947,0.00033985,2]
[426426597,1782376283000,-178.5974,0.00034636,14]
[426426598,1782376283000,-4110.76308009,0.00034692,2]
[426426594,1782376283000,-814.95884507,0.00034361,2]
[426426591,1782376283000,-600.0,0.00034142,2]
[426426586,1782376283000,-511.10925329,0.00033967,2]
[426426608,1782376283000,-1137.27195787,0.00038224,2]
[426426602,1782376283000,-1104.45947222,0.00034984,2]
[426426620,1782376283000,-1317.71787913,0.00039707,2]
[426426603,1782376283000,-220.0,0.0003501,2]
[426426606,1782376283000,-191.326992,0.00038024,2]
[426426610,1782376283000,-158.26,0.000383,120]
[426426619,1782376283000,-1303.93415211,0.00039707,2]
[426426616,1782376283000,-152.12492349,0.00039356,25]
[426426617,1782376283000,-292.771806,0.00039468,120]
[426426611,1782376283000,-237.63872601,0.00038667,2]
[426426615,1782376283000,-158.26,0.000393,120]
[426426614,1782376283000,-249.88962205,0.00039171,2]
[426426609,1782376283000,-1288.53605093,0.00038224,2]
[426426613,1782376283000,-405.0,0.000388,2]
[426426612,1782376283000,-158.26,0.000388,120]
[426426590,1782376283000,-950.0,0.00034096,2]
[426426604,1782376283000,-178.2408,0.00035701,6]
[426426595,1782376283000,-803.03020641,0.00034374,2]
[426426574,1782376283000,-378.82037729,0.00033955,2]
[426426596,1782376283000,-920.38289352,0.00034374,2]
[426426564,1782376283000,-651.96707606,0.00033955,2]
[426426560,1782376283000,-495.25196023,0.00033955,2]
[426426563,1782376283000,-179.20120394,0.00033955,2]
[426426562,1782376283000,-169.77168308,0.00033955,2]
[426426561,1782376283000,-548.6142256,0.00033955,2]
[426426566,1782376283000,-644.09211091,0.00033955,2]